bitfinex/quotes_BTCUSD_20240701
["timestamp","ask_amount","ask_price","bid_price","bid_amount"]
[1719843539478,1.27883456,62776.0,62775.0,0.1747141]
[1719843539906,1.27883456,62776.0,62775.0,0.1837141]
[1719843540136,0.632889,62776.0,62775.0,0.33705308]
[1719843540459,0.632889,62776.0,62775.0,0.34705308]
[1719843540666,0.632889,62776.0,62775.0,0.35905308]
[1719843540824,0.632889,62776.0,62775.0,0.34905308]
[1719843541197,0.314296,62776.0,62775.0,0.35905308]
[1719843541600,0.314296,62776.0,62775.0,0.37205308]
[1719843542087,0.159291,62778.0,62775.0,0.37205308]
[1719843542291,0.1586,62782.0,62778.0,0.01]
[1719843542457,0.317881,62782.0,62779.0,0.17233898]
[1719843542667,0.317881,62782.0,62781.0,0.01]
[1719843542861,0.317881,62782.0,62780.0,0.16233898]
[1719843542862,0.159284,62781.0,62780.0,0.16233898]
[1719843543220,0.159284,62781.0,62780.0,0.17233898]
[1719843543899,0.00295956,62790.0,62784.0,0.01]
[1719843544126,0.16223056,62786.0,62785.0,0.16233898]
[1719843544304,0.16223056,62786.0,62785.0,0.21138418]
[1719843544305,0.159271,62786.0,62785.0,0.21138418]
[1719843544704,0.167667,62788.0,62785.0,0.22138418]
[1719843544863,0.167667,62788.0,62787.0,0.01]
[1719843545059,0.17062656,62788.0,62787.0,0.2162883]
[1719843545265,0.48915856,62788.0,62787.0,0.2162883]
[1719843545499,0.0084,62788.0,62787.0,0.2162883]
[1719843545669,0.0084,62788.0,62787.0,0.2262883]
[1719843546040,0.0084,62788.0,62787.0,0.3755563]
[1719843546229,0.0084,62788.0,62787.0,0.3985563]
[1719843546431,0.0084,62788.0,62787.0,0.4085563]
[1719843546567,0.0084,62788.0,62787.0,0.4125563]
[1719843546784,0.0084,62788.0,62787.0,0.7310933]
[1719843546990,0.0084,62788.0,62787.0,0.4025563]
[1719843547214,0.0084,62788.0,62787.0,0.4125563]
[1719843547417,0.0084,62788.0,62787.0,0.7310933]
[1719843547849,0.0084,62788.0,62787.0,0.7210933]
[1719843548083,0.167666,62788.0,62787.0,0.2432883]
[1719843548318,0.0084,62788.0,62787.0,0.2432883]
[1719843548546,0.0084,62788.0,62787.0,0.2482883]
[1719843548784,0.0084,62788.0,62787.0,0.4175563]
[1719843549046,0.0084,62788.0,62787.0,1.0546303]
[1719843550404,0.0084,62788.0,62787.0,1.0506303]
[1719843550812,0.0084,62788.0,62787.0,1.0456303]
[1719843550976,0.0084,62788.0,62787.0,1.0736303]
[1719843552307,0.0084,62788.0,62787.0,1.1419303]
[1719843552661,0.0084,62788.0,62787.0,1.85750774]
[1719843553113,0.0084,62788.0,62787.0,1.6604673]
[1719843553344,0.0084,62788.0,62787.0,1.85750774]
[1719843553548,0.0084,62788.0,62787.0,1.4604673]
[1719843553675,0.0084,62788.0,62787.0,1.6604673]
[1719843553885,0.0084,62788.0,62787.0,1.85750774]
[1719843554522,0.0084,62788.0,62787.0,1.4604673]
[1719843554961,0.0084,62788.0,62787.0,1.85750774]
[1719843555138,0.0084,62788.0,62787.0,1.6604673]
[1719843555569,0.0084,62788.0,62787.0,1.85750774]
[1719843556849,0.0084,62788.0,62787.0,1.6464673]
[1719843557049,0.0084,62788.0,62787.0,1.6604673]
[1719843557249,0.0084,62788.0,62787.0,1.0736303]
[1719843557474,0.0084,62788.0,62787.0,0.7410933]
[1719843557996,0.0084,62788.0,62787.0,1.0736303]
[1719843560193,0.0084,62788.0,62787.0,1.27067074]
[1719843560397,0.0084,62788.0,62787.0,1.47067074]
[1719843560811,0.0084,62788.0,62787.0,1.79760774]
[1719843561874,0.0084,62788.0,62787.0,2.11614474]
[1719843562012,0.0084,62788.0,62787.0,2.25440774]
[1719843562361,0.0084,62788.0,62787.0,2.57294474]
[1719843568515,0.0084,62788.0,62787.0,2.89148174]
[1719843568730,0.0084,62788.0,62787.0,2.57294474]
[1719843571372,0.0084,62788.0,62787.0,2.89148174]
[1719843572433,0.0084,62788.0,62787.0,2.87748174]
[1719843573116,0.0084,62788.0,62787.0,2.89148174]
[1719843575390,0.0084,62788.0,62787.0,2.95765564]
[1719843576045,0.0034,62788.0,62787.0,2.95765564]
[1719843577009,0.0034,62788.0,62787.0,2.89148174]
[1719843577982,0.0034,62788.0,62787.0,2.57294474]
[1719843578193,0.0034,62788.0,62787.0,2.79984474]
[1719843579135,0.0034,62788.0,62787.0,2.32450774]
[1719843579361,0.0034,62788.0,62787.0,2.07460774]
[1719843580391,0.0034,62788.0,62787.0,2.28750774]
[1719843580954,0.0034,62788.0,62787.0,2.1134673]
[1719843581553,0.0034,62788.0,62787.0,2.0994673]
[1719843581759,0.0034,62788.0,62787.0,2.32450774]
[1719843582663,0.0034,62788.0,62787.0,2.31050774]
[1719843583977,0.0034,62788.0,62787.0,2.32450774]
[1719843585794,0.0034,62788.0,62787.0,2.39020774]
[1719843586339,0.0034,62788.0,62787.0,2.79534474]
[1719843586690,0.0034,62788.0,62787.0,2.86152135]
[1719843586897,0.0034,62788.0,62787.0,2.86152088]
[1719843587919,0.0034,62788.0,62787.0,2.90915624]
[1719843588118,0.00842,62795.0,62794.0,0.80704044]
[1719843588327,0.00842,62795.0,62794.0,3.07867336]
[1719843588529,0.00842,62795.0,62794.0,3.17867336]
[1719843588728,0.00842,62795.0,62794.0,3.49717436]
[1719843589016,0.00842,62795.0,62794.0,3.5686274]
[1719843589445,0.00842,62795.0,62794.0,3.5966274]
[1719843589852,0.0084,62811.0,62799.0,2.43865844]
[1719843590053,0.0084,62811.0,62799.0,3.14210273]
[1719843590230,0.0084,62811.0,62799.0,2.88979124]
[1719843590433,0.0084,62811.0,62799.0,2.96126846]
[1719843590709,0.0084,62811.0,62799.0,3.53319221]
[1719843590710,1e-08,62800.0,62799.0,3.53319221]
[1719843590927,0.0084,62811.0,62810.0,0.60704044]
[1719843591111,0.0084,62811.0,62810.0,2.17400562]
[1719843591342,0.0084,62811.0,62810.0,2.91084562]
[1719843591545,0.0084,62811.0,62810.0,2.76004562]
[1719843592097,0.0084,62811.0,62810.0,2.44162562]
[1719843592917,0.0084,62811.0,62810.0,2.24162562]
[1719843593132,0.0084,62811.0,62810.0,2.01472562]
[1719843593351,0.0084,62811.0,62810.0,1.51326518]
[1719843593505,0.1658,62811.0,62810.0,1.19484518]
[1719843593708,0.1658,62811.0,62810.0,1.20884518]
[1719843593974,0.1658,62811.0,62810.0,1.52726518]
[1719843594277,0.1658,62811.0,62810.0,1.72430562]
[1719843594476,0.1658,62811.0,62810.0,1.52726518]
[1719843595101,0.0084,62811.0,62810.0,1.59256518]
[1719843595215,0.0084,62811.0,62810.0,1.52726518]
[1719843595889,0.155,62811.0,62810.0,1.52726518]
[1719843596429,0.155,62811.0,62810.0,1.36843418]
[1719843598460,0.155,62811.0,62810.0,1.05001418]
[1719843599066,0.0084,62811.0,62810.0,1.05001418]
[1719843599321,0.0084,62811.0,62810.0,1.24705462]
[1719843599465,0.0084,62811.0,62810.0,1.56547462]
[1719843599667,0.0084,62811.0,62810.0,2.08389462]
[1719843600516,0.0084,62811.0,62810.0,2.28389462]
[1719843601379,0.0084,62811.0,62810.0,2.30303831]
[1719843601996,0.0084,62811.0,62810.0,2.31143831]
[1719843602278,0.0084,62811.0,62810.0,2.29743831]
[1719843602758,0.0084,62811.0,62810.0,2.11439787]
[1719843602996,0.0084,62811.0,62810.0,2.29743831]
[1719843603414,0.0084,62811.0,62810.0,2.10039787]
[1719843604145,0.0084,62811.0,62810.0,0.78992787]
[1719843604346,0.1605,62811.0,62810.0,0.57692787]
[1719843604966,0.1605,62811.0,62810.0,0.56692787]
[1719843605080,0.65108156,62811.0,62810.0,0.19033898]
[1719843605281,0.96949656,62811.0,62810.0,0.028]
[1719843605525,0.96949656,62811.0,62810.0,0.014]
[1719843605526,1.28791156,62811.0,62810.0,0.014]
[1719843605928,0.96949656,62811.0,62810.0,0.19033898]
[1719843606171,0.96949656,62811.0,62810.0,0.20937288]
[1719843606344,1.28791156,62811.0,62810.0,0.19537288]
[1719843606552,1.28791156,62811.0,62810.0,0.18137288]
[1719843606750,1.28791156,62811.0,62810.0,0.0190339]
[1719843606961,0.630576,62804.0,62803.0,0.00410824]
[1719843607155,0.630576,62804.0,62803.0,0.32209398]
[1719843607358,0.312125,62804.0,62803.0,0.33209398]
[1719843607560,0.312125,62804.0,62803.0,0.80977798]
[1719843607561,0.1529,62804.0,62803.0,0.80977798]
[1719843607960,0.1529,62804.0,62803.0,0.32209398]
[1719843608159,0.949027,62804.0,62803.0,0.4480885]
[1719843608371,0.949027,62804.0,62803.0,0.4620885]
[1719843609437,1.28043756,62804.0,62803.0,0.173755]
[1719843610090,1.28043756,62804.0,62803.0,0.187755]
[1719843610299,1.28043756,62804.0,62803.0,0.173755]
[1719843610601,0.96198656,62804.0,62803.0,0.33509398]
[1719843611004,0.96198656,62804.0,62803.0,0.32209398]
[1719843611207,0.949027,62804.0,62803.0,0.33009398]
[1719843611456,0.949027,62804.0,62803.0,0.36310338]
[1719843611672,0.949027,62804.0,62803.0,0.35510338]
[1719843612209,0.949027,62804.0,62803.0,0.36510338]
[1719843612210,0.1529,62804.0,62803.0,0.36510338]
[1719843612337,0.1529,62804.0,62803.0,0.22927238]
[1719843612551,0.1529,62804.0,62803.0,0.23827238]
[1719843612891,0.312125,62804.0,62803.0,0.23827238]
[1719843613590,0.159218,62807.0,62803.0,0.40950038]
[1719843613823,0.47053,62809.0,62803.0,0.40950038]
[1719843613824,0.15922,62806.0,62804.0,0.20948465]
[1719843614001,0.0692,62813.0,62809.0,0.01]
[1719843614330,0.0692,62813.0,62810.0,0.18533898]
[1719843614484,0.0692,62813.0,62810.0,0.41178797]
[1719843614485,0.167607,62811.0,62810.0,0.41178797]
[1719843614683,0.0084,62811.0,62810.0,0.58099797]
[1719843614938,0.0084,62811.0,62810.0,0.89941797]
[1719843615645,0.0084,62811.0,62810.0,1.23183797]
[1719843616608,0.0084,62811.0,62810.0,2.23379841]
[1719843616846,0.0084,62811.0,62810.0,2.72101841]
[1719843617466,0.0084,62811.0,62810.0,2.73501841]
[1719843618278,0.0084,62811.0,62810.0,2.72101841]
[1719843618690,0.0084,62811.0,62810.0,2.40359841]
[1719843618903,0.0084,62811.0,62810.0,2.40259841]
[1719843619107,0.0084,62811.0,62810.0,1.01341797]
[1719843619681,0.0084,62811.0,62810.0,0.87504645]
[1719843620066,0.0084,62811.0,62810.0,0.87404645]
[1719843620445,0.0084,62811.0,62810.0,1.19246645]
[1719843620651,0.0084,62811.0,62810.0,1.20646645]
[1719843621086,0.0011,62812.0,62811.0,0.487622]
[1719843621340,0.0011,62812.0,62811.0,0.99435785]
[1719843621675,0.0011,62812.0,62811.0,0.98435785]
[1719843621871,0.0011,62812.0,62811.0,0.99435785]
[1719843622128,0.0011,62812.0,62811.0,1.31277285]
[1719843622431,0.0011,62812.0,62811.0,1.32677285]
[1719843622992,0.0011,62812.0,62811.0,1.52381329]
[1719843623563,0.0011,62812.0,62811.0,1.92572829]
[1719843624298,0.0011,62812.0,62811.0,2.35262829]
[1719843624905,0.0011,62812.0,62811.0,2.87104329]
[1719843625320,0.0011,62812.0,62811.0,2.85704329]
[1719843625951,0.0011,62812.0,62811.0,2.87104329]
[1719843626149,0.0084,62820.0,62819.0,1.80455244]
[1719843626354,0.0084,62820.0,62819.0,2.56709742]
[1719843627983,0.0084,62820.0,62819.0,2.76709742]
[1719843628842,0.0084,62820.0,62819.0,2.44872242]
[1719843629003,0.0084,62820.0,62819.0,2.53034041]
[1719843629408,0.0084,62820.0,62819.0,1.74572497]
[1719843629810,0.0084,62820.0,62819.0,1.73172497]
[1719843630024,0.0084,62820.0,62819.0,1.71772497]
[1719843630229,0.0084,62820.0,62819.0,1.74572497]
[1719843630433,0.0084,62820.0,62819.0,1.73172497]
[1719843630629,0.0084,62820.0,62819.0,1.72172497]
[1719843630831,0.1581,62820.0,62819.0,1.16634997]
[1719843631489,0.1581,62820.0,62819.0,0.22995697]
[1719843631490,0.32024356,62820.0,62819.0,0.22995697]
[1719843631687,0.64239538,62820.0,62819.0,0.16233898]
[1719843632657,0.16484238,62820.0,62819.0,0.19033898]
[1719843632856,0.32402638,62820.0,62819.0,0.21333898]
[1719843633064,0.32402638,62820.0,62819.0,0.19933898]
[1719843633065,0.16484238,62820.0,62819.0,0.19933898]
[1719843633264,0.01514238,62820.0,62819.0,0.43721808]
[1719843633461,0.01514238,62820.0,62819.0,1.08796808]
[1719843633821,0.0084,62820.0,62819.0,1.08796808]
[1719843633945,0.0084,62820.0,62819.0,1.07796808]
[1719843634165,0.0084,62820.0,62819.0,0.76959308]
[1719843634370,0.0084,62820.0,62819.0,0.75559308]
[1719843634569,0.01435548,62820.0,62819.0,0.75559308]
[1719843634773,0.01435548,62820.0,62819.0,0.74159308]
[1719843634979,0.01435548,62820.0,62819.0,0.25403108]
[1719843635770,0.01435548,62820.0,62819.0,0.26803108]
[1719843636891,0.01435548,62820.0,62819.0,0.28203108]
[1719843637139,0.65109348,62820.0,62819.0,0.28203108]
[1719843637338,0.82323704,62820.0,62819.0,0.19033898]
[1719843637549,1.14160604,62820.0,62819.0,0.19033898]
[1719843637778,0.82323704,62820.0,62819.0,0.19033898]
[1719843638258,0.81323704,62820.0,62819.0,0.19033898]
[1719843638476,0.82323704,62820.0,62819.0,0.20937288]
[1719843638660,0.82680132,62820.0,62819.0,0.23237288]
[1719843639177,0.82680132,62820.0,62819.0,0.19033898]
[1719843639178,1.29647032,62820.0,62819.0,0.19033898]
[1719843639887,1.29647032,62820.0,62819.0,0.17633898]
[1719843640311,1.29647032,62820.0,62819.0,0.19033898]
[1719843640513,1.29647032,62820.0,62819.0,0.17633898]
[1719843641049,1.29647032,62820.0,62819.0,0.19033898]
[1719843641320,1.62483932,62820.0,62819.0,0.028]
[1719843641724,1.95639841,62820.0,62819.0,0.028]
[1719843642046,2.05137848,62820.0,62819.0,0.028]
[1719843642200,0.79908656,62804.0,62803.0,0.472524]
[1719843642381,0.79908656,62804.0,62803.0,0.84094638]
[1719843642382,0.96198656,62804.0,62803.0,0.84094638]
[1719843642582,0.97147714,62804.0,62803.0,0.84094638]
[1719843643968,1.28992814,62804.0,62803.0,0.84094638]
[1719843644712,1.28992814,62804.0,62803.0,0.85494638]
[1719843644929,1.28992814,62804.0,62803.0,0.86894638]
[1719843645360,1.28992814,62804.0,62803.0,0.187755]
[1719843645361,1.29043756,62804.0,62803.0,0.187755]
[1719843645542,1.28043756,62804.0,62803.0,0.187755]
[1719843645747,1.28992732,62804.0,62803.0,0.187755]
[1719843646941,1.29992732,62804.0,62803.0,0.187755]
[1719843647114,1.28992732,62804.0,62803.0,0.2065305]
[1719843647315,1.28992732,62804.0,62803.0,0.0476995]
[1719843647521,1.28992732,62804.0,62803.0,0.028924]
[1719843649551,1.61837832,62804.0,62803.0,0.028924]
[1719843651166,1.61837832,62804.0,62803.0,0.014924]
[1719843651376,1.61837832,62804.0,62803.0,0.000924]
[1719843651591,1.93682932,62804.0,62803.0,0.014924]
[1719843652797,1.61837832,62804.0,62803.0,0.014924]
[1719843653124,1.60837832,62804.0,62803.0,0.014924]
[1719843653335,1.29992732,62804.0,62803.0,0.014924]
[1719843654073,1.29992732,62804.0,62803.0,0.024924]
[1719843656128,1.61837832,62804.0,62803.0,0.024924]
[1719843656494,2.16372932,62804.0,62803.0,0.024924]
[1719843656696,2.16372932,62804.0,62803.0,1e-06]
[1719843656697,2.9941683,62804.0,62803.0,1e-06]
[1719843656901,2.9941683,62804.0,62784.0,0.472524]
[1719843656902,1.29197356,62785.0,62784.0,0.472524]
[1719843657047,1.28197356,62785.0,62784.0,0.159755]
[1719843657250,1.30132192,62785.0,62784.0,0.159755]
[1719843657450,1.30132192,62785.0,62784.0,0.1757305]
[1719843659089,1.30132192,62785.0,62784.0,0.1897305]
[1719843660468,1.30132192,62785.0,62784.0,0.173755]
[1719843660731,1.84676892,62785.0,62784.0,0.173755]
[1719843660871,1.83676892,62785.0,62784.0,0.173755]
[1719843661075,1.29132192,62785.0,62784.0,0.173755]
[1719843661330,1.30132192,62785.0,62784.0,0.173755]
[1719843661903,1.29132192,62785.0,62784.0,0.1771305]
[1719843662225,1.30232192,62785.0,62784.0,0.1901305]
[1719843662430,1.30332192,62785.0,62784.0,0.024924]
[1719843662632,1.30332192,62785.0,62784.0,0.011924]
[1719843662633,1.82086892,62785.0,62784.0,0.011924]
[1719843662838,1.62086892,62785.0,62784.0,0.011924]
[1719843663363,1.30232192,62785.0,62784.0,0.011924]
[1719843664396,1.30332192,62785.0,62784.0,0.017924]
[1719843665502,1.29332192,62785.0,62784.0,0.017924]
[1719843666699,0.82067492,62785.0,62784.0,0.017924]
[1719843667095,0.01430792,62785.0,62784.0,0.18026298]
[1719843667413,0.50212792,62785.0,62784.0,0.18026298]
[1719843667702,1.22322192,62785.0,62784.0,0.017924]
[1719843667901,1.28592192,62785.0,62784.0,0.017924]
[1719843668581,1.29492192,62785.0,62784.0,0.011924]
[1719843668988,1.29492192,62785.0,62784.0,0.016924]
[1719843669188,1.29392192,62785.0,62784.0,0.005924]
[1719843669591,1.29392192,62785.0,62784.0,0.014924]
[1719843669592,1.29492192,62785.0,62784.0,0.014924]
[1719843669796,1.84036892,62785.0,62784.0,0.014924]
[1719843669974,1.83936892,62785.0,62784.0,0.000924]
[1719843670199,1.84036892,62785.0,62784.0,0.010924]
[1719843670395,1.84136892,62785.0,62784.0,0.024924]
[1719843670791,3.2408019,62785.0,62784.0,1e-06]
[1719843670992,1.12826556,62763.0,62762.0,0.47591475]
[1719843671193,1.12826556,62763.0,62762.0,0.63474575]
[1719843671325,1.12826556,62763.0,62762.0,0.158831]
[1719843671522,1.13969257,62763.0,62762.0,0.1747141]
[1719843671723,1.13969257,62763.0,62762.0,0.158831]
[1719843672979,1.14969257,62763.0,62762.0,0.158831]
[1719843673381,1.13969257,62763.0,62762.0,0.158831]
[1719843673580,1.14069257,62763.0,62762.0,0.166831]
[1719843673726,1.14069257,62763.0,62762.0,0.177831]
[1719843673727,1.14169257,62763.0,62762.0,0.177831]
[1719843674669,0.01342701,62763.0,62762.0,0.49715308]
[1719843674855,0.16428856,62763.0,62762.0,0.52015308]
[1719843675061,0.49294756,62763.0,62762.0,0.52015308]
[1719843675259,0.50759007,62763.0,62762.0,0.52015308]
[1719843675540,0.82624907,62763.0,62762.0,0.38095308]
[1719843675819,0.82624907,62763.0,62762.0,0.35795308]
[1719843675975,0.50759007,62763.0,62762.0,0.35795308]
[1719843676392,0.50759007,62763.0,62762.0,0.19912208]
[1719843676393,0.82624907,62763.0,62762.0,0.19912208]
[1719843676593,0.50559007,62763.0,62762.0,0.18012208]
[1719843677017,0.50559007,62763.0,62762.0,0.19212208]
[1719843677580,0.50659007,62763.0,62762.0,0.19412208]
[1719843677788,0.50659007,62763.0,62762.0,0.19012208]
[1719843677789,0.82424907,62763.0,62762.0,0.19012208]
[1719843678000,0.50559007,62763.0,62762.0,0.19012208]
[1719843678196,0.82424907,62763.0,62762.0,0.20312208]
[1719843678563,0.50559007,62763.0,62762.0,0.20312208]
[1719843678698,0.49559007,62763.0,62762.0,0.20312208]
[1719843678897,0.50559007,62763.0,62762.0,0.20312208]
[1719843679767,0.82424907,62763.0,62762.0,0.20312208]
[1719843680461,0.82424907,62763.0,62762.0,0.023]
[1719843680462,1.14290807,62763.0,62762.0,0.023]
[1719843680668,1.21460807,62763.0,62762.0,0.023]
[1719843681094,1.29140807,62763.0,62762.0,0.023]
[1719843681364,1.61006707,62763.0,62762.0,0.023]
[1719843681768,1.60637619,62763.0,62762.0,0.023]
[1719843682111,1.61002673,62763.0,62762.0,0.023]
[1719843683269,1.61002673,62763.0,62762.0,0.013]
[1719843683449,1.60002673,62763.0,62762.0,0.013]
[1719843683674,1.61002673,62763.0,62762.0,0.015]
[1719843683999,1.61002673,62763.0,62762.0,0.002]
[1719843684828,1.61102673,62763.0,62762.0,0.009]
[1719843686214,1.97336571,62763.0,62762.0,0.00895543]
[1719843686462,1.60735266,62763.0,62762.0,0.00895543]
[1719843686708,1.80735266,62763.0,62762.0,0.00895543]
[1719843686941,1.60735266,62763.0,62762.0,0.00895543]
[1719843688769,1.83425266,62763.0,62762.0,0.00895543]
[1719843689166,1.83325266,62763.0,62762.0,0.00195543]
[1719843689386,1.84025266,62763.0,62762.0,0.00295543]
[1719843689790,1.13837056,62757.0,62756.0,0.00924]
[1719843689988,1.13837056,62757.0,62756.0,0.168071]
[1719843690193,0.5019165,62757.0,62756.0,0.168071]
[1719843690966,0.8206055,62757.0,62756.0,0.168071]
[1719843691597,0.5019165,62757.0,62756.0,0.168071]
[1719843691763,0.5049165,62757.0,62756.0,0.168071]
[1719843691945,0.1862275,62757.0,62756.0,0.168071]
[1719843692370,0.0168835,62757.0,62756.0,0.41052688]
[1719843692619,0.1772275,62757.0,62756.0,0.41052688]
[1719843692842,0.1872275,62757.0,62756.0,0.41052688]
[1719843693024,0.1842275,62757.0,62756.0,0.41052688]
[1719843693443,0.5029165,62757.0,62756.0,0.41052688]
[1719843693641,0.5029165,62757.0,62756.0,0.41552688]
[1719843693785,0.1742275,62757.0,62756.0,0.41552688]
[1719843693984,0.50657028,62757.0,62756.0,0.41552688]
[1719843694199,0.01557772,62757.0,62756.0,0.41552688]
[1719843694383,0.001,62757.0,62756.0,0.92545098]
[1719843694746,0.001,62757.0,62756.0,0.99205098]
[1719843694944,0.001,62757.0,62756.0,0.67335698]
[1719843695146,0.00395956,62757.0,62756.0,0.61382498]
[1719843695352,0.01553043,62757.0,62756.0,1.25121298]
[1719843695647,0.001,62757.0,62756.0,1.25121298]
[1719843695940,0.001,62757.0,62756.0,0.93251898]
[1719843696348,0.01553043,62757.0,62756.0,0.93251898]
[1719843696504,0.001,62757.0,62756.0,0.92751898]
[1719843696711,0.01553043,62757.0,62756.0,0.92751898]
[1719843696963,0.001,62757.0,62756.0,0.92751898]
[1719843697361,0.00295956,62760.0,62756.0,0.77317198]
[1719843697560,0.00295956,62760.0,62757.0,0.25547891]
[1719843697761,0.17684541,62759.0,62757.0,0.25547891]
[1719843698263,0.01454485,62759.0,62757.0,0.41482191]
[1719843698562,0.01454485,62759.0,62758.0,0.79671]
[1719843698711,0.01454485,62759.0,62758.0,0.99204898]
[1719843698893,0.00295956,62765.0,62762.0,0.159331]
[1719843699097,0.00295956,62765.0,62763.0,0.32166698]
[1719843699275,0.16228656,62764.0,62763.0,0.32116998]
[1719843700041,0.318632,62769.0,62764.0,0.137]
[1719843700042,0.00295956,62768.0,62764.0,0.137]
[1719843700241,0.318603,62774.0,62764.0,0.137]
[1719843700242,0.00295956,62772.0,62766.0,0.01]
[1719843700441,0.15931,62771.0,62767.0,0.32165698]
[1719843701022,0.16227156,62770.0,62767.0,0.16233898]
[1719843701226,0.16227156,62770.0,62768.0,0.099299]
[1719843701429,0.49090156,62769.0,62768.0,0.099299]
[1719843701634,0.16228156,62766.0,62764.0,0.137]
[1719843701904,0.159317,62768.0,62765.0,0.023]
[1719843702463,0.80955456,62767.0,62766.0,0.16233898]
[1719843702624,0.49092356,62766.0,62765.0,0.16233898]
[1719843702850,0.49092356,62766.0,62763.0,0.172831]
[1719843702851,0.80959456,62764.0,62763.0,0.172831]
[1719843703055,1.12824856,62764.0,62763.0,0.172831]
[1719843703583,1.12824856,62764.0,62763.0,0.158831]
[1719843703745,1.12824856,62764.0,62763.0,0.1747141]
[1719843704367,0.49094056,62764.0,62763.0,0.1747141]
[1719843704560,0.49052175,62764.0,62763.0,0.1837141]
[1719843704791,0.49052175,62764.0,62763.0,0.1977141]
[1719843705101,0.318624,62770.0,62764.0,0.220925]
[1719843705102,0.159317,62768.0,62764.0,0.220925]
[1719843705302,0.159317,62768.0,62765.0,0.23125679]
[1719843705303,0.00295956,62766.0,62765.0,0.23125679]
[1719843705505,0.00295956,62767.0,62765.0,0.23125679]
[1719843705717,0.00295956,62766.0,62765.0,0.23125679]
[1719843706121,0.00262532,62769.0,62765.0,0.23125679]
[1719843706389,0.00262532,62770.0,62767.0,0.159318]
[1719843706592,0.00262532,62769.0,62768.0,0.16233898]
[1719843706797,0.00262532,62769.0,62766.0,0.08463802]
[1719843706798,0.477957,62767.0,62766.0,0.08463802]
[1719843706947,0.1436,62772.0,62763.0,0.168831]
[1719843706948,0.49060632,62764.0,62763.0,0.168831]
[1719843707149,0.80926032,62764.0,62763.0,0.168831]
[1719843707385,0.82386791,62764.0,62763.0,0.161831]
[1719843707588,1.21292191,62764.0,62763.0,0.161831]
[1719843707975,1.29002191,62764.0,62763.0,0.158831]
[1719843709000,1.29002191,62764.0,62763.0,0.1747141]
[1719843709352,1.29002191,62764.0,62763.0,0.166831]
[1719843709549,1.28002191,62764.0,62763.0,0.166831]
[1719843710934,1.28002191,62764.0,62763.0,0.158831]
[1719843711149,1.14252191,62764.0,62763.0,0.158831]
[1719843711353,0.82386791,62764.0,62763.0,0.158831]
[1719843711475,0.82386791,62764.0,62763.0,0.1787141]
[1719843712273,0.82386791,62764.0,62763.0,0.1757141]
[1719843712475,0.82386791,62764.0,62763.0,0.0168831]
[1719843712636,0.82386791,62764.0,62763.0,0.001]
[1719843712814,0.00262532,62759.0,62757.0,0.1445]
[1719843713016,0.00262532,62759.0,62758.0,0.16233898]
[1719843713418,0.01457326,62759.0,62758.0,0.32167798]
[1719843713615,0.00262532,62763.0,62758.0,0.34467798]
[1719843713616,0.159332,62762.0,62758.0,0.34467798]
[1719843713871,0.159332,62762.0,62759.0,0.1511633]
[1719843714184,0.159332,62762.0,62760.0,0.16233898]
[1719843714523,0.17195932,62761.0,62760.0,0.16233898]
[1719843714725,0.17195932,62761.0,62760.0,0.20361461]
[1719843715281,0.49062832,62761.0,62760.0,0.20361461]
[1719843715447,0.17195932,62761.0,62760.0,0.20361461]
[1719843715678,0.00262532,62771.0,62760.0,0.34561461]
[1719843715861,0.1186735,62774.0,62760.0,0.34561461]
[1719843715862,0.00262532,62766.0,62761.0,0.07546856]
[1719843716028,0.00262532,62765.0,62762.0,0.16233898]
[1719843716228,0.00262532,62770.0,62767.0,0.159318]
[1719843716431,0.00262532,62769.0,62768.0,0.16233898]
[1719843716626,0.01262532,62769.0,62768.0,0.19445598]
[1719843716831,0.17194132,62768.0,62767.0,0.158831]
[1719843717038,0.49057432,62768.0,62767.0,0.158831]
[1719843717243,0.80920732,62768.0,62767.0,0.158831]
[1719843718136,1.13784032,62768.0,62767.0,0.158831]
[1719843718694,1.13784032,62768.0,62767.0,0.166831]
[1719843718695,0.02262532,62768.0,62767.0,0.166831]
[1719843718902,0.40339522,62768.0,62767.0,0.166831]
[1719843719263,0.40339522,62768.0,62767.0,0.177831]
[1719843719482,0.40339522,62768.0,62767.0,0.169831]
[1719843719895,0.40339522,62768.0,62767.0,0.171831]
[1719843720530,0.17649152,62768.0,62767.0,0.171831]
[1719843720973,0.29514662,62768.0,62767.0,0.171831]
[1719843721180,0.17649152,62768.0,62767.0,0.171831]
[1719843721414,0.17649152,62768.0,62767.0,0.013]
[1719843721415,0.7388305,62768.0,62767.0,0.013]
[1719843721621,1.38510246,62768.0,62767.0,0.009]
[1719843721799,1.38510246,62768.0,62752.0,0.159755]
[1719843721800,0.35962532,62757.0,62752.0,0.159755]
[1719843721935,0.77903456,62757.0,62752.0,0.159755]
[1719843722138,0.57903456,62757.0,62752.0,0.159755]
[1719843722451,1.14137354,62757.0,62752.0,0.159755]
[1719843722854,1.06201739,62757.0,62752.0,0.159755]
[1719843723626,1.06201739,62757.0,62756.0,0.01024]
[1719843723627,1.62701833,62757.0,62756.0,0.01024]
[1719843723828,1.67135204,62757.0,62756.0,0.01024]
[1719843724060,3.46858097,62757.0,62756.0,0.01024]
[1719843724351,2.92388799,62757.0,62756.0,0.01024]
[1719843724489,2.35578799,62757.0,62756.0,0.01024]
[1719843724689,2.55578799,62757.0,62756.0,0.01024]
[1719843724890,2.75578799,62757.0,62756.0,0.01024]
[1719843725134,2.75578799,62757.0,62756.0,0.01124]
[1719843725135,2.69711739,62757.0,62756.0,0.01124]
[1719843725336,2.69711739,62757.0,62756.0,0.01024]
[1719843725559,2.69711739,62757.0,62756.0,0.00924]
[1719843725784,2.69611739,62757.0,62756.0,0.00924]
[1719843725987,2.69711765,62757.0,62756.0,0.01024]
[1719843726141,2.69711765,62757.0,62756.0,0.01124]
[1719843726543,2.49611765,62757.0,62756.0,0.01024]
[1719843726727,2.69611765,62757.0,62756.0,0.01024]
[1719843727761,1.70687867,62757.0,62756.0,0.01024]
[1719843727877,1.93377867,62757.0,62756.0,0.01024]
[1719843728078,2.13377867,62757.0,62756.0,0.01024]
[1719843728309,2.14777867,62757.0,62756.0,0.01124]
[1719843728502,2.14902936,62757.0,62756.0,0.01124]
[1719843728702,2.16218425,62757.0,62756.0,0.01024]
[1719843728901,2.13502936,62757.0,62756.0,0.00924]
[1719843729107,2.13502936,62757.0,62756.0,0.01024]
[1719843729108,2.14818451,62757.0,62756.0,0.01024]